[Event "Early-Titled-Tuesday-Blitz-July-09-2024"]
[Site "Chess.com"]
[Date "2024.07.09"]
[Round "11"]
[White "Stanbad1"]
[Black "Losingexperience"]
[Result "0-1"]
[WhiteElo "2612"]
[BlackElo "2730"]
[TimeControl "180+1"]
[EndTime "10:04:09 PDT"]
[Termination "Losingexperience won by checkmate"]

1. d4 {[%clk 0:03:00.9]} 1... Nf6 {[%clk 0:02:58.4]} 2. Nc3 {[%clk 0:02:56.8]}
2... d5 {[%clk 0:02:58.1]} 3. Bf4 {[%clk 0:02:56.2]} 3... g6 {[%clk 0:02:58.1]}
4. e3 {[%clk 0:02:55.5]} 4... Bg7 {[%clk 0:02:58.1]} 5. h4 {[%clk 0:02:54.6]}
5... h5 {[%clk 0:02:57.8]} 6. Nf3 {[%clk 0:02:54.1]} 6... O-O {[%clk 0:02:56.5]}
7. Ne5 {[%clk 0:02:53.9]} 7... c5 {[%clk 0:02:55.9]} 8. Qd2 {[%clk 0:02:53.6]}
8... cxd4 {[%clk 0:02:53.5]} 9. exd4 {[%clk 0:02:53]} 9... Nc6 {[%clk
0:02:54.4]} 10. f3 {[%clk 0:02:52.5]} 10... Bf5 {[%clk 0:02:53.6]} 11. Bb5
{[%clk 0:02:50.4]} 11... Rc8 {[%clk 0:02:53.3]} 12. Bxc6 {[%clk 0:02:49.8]}
12... bxc6 {[%clk 0:02:53.2]} 13. Na4 {[%clk 0:02:49.8]} 13... Ne8 {[%clk
0:02:47.5]} 14. Nc5 {[%clk 0:02:46.5]} 14... Nd6 {[%clk 0:02:47.4]} 15. c3
{[%clk 0:02:35.4]} 15... f6 {[%clk 0:02:46.1]} 16. Ned3 {[%clk 0:02:32.5]} 16...
Nc4 {[%clk 0:02:43.6]} 17. Qe2 {[%clk 0:02:32.1]} 17... e5 {[%clk 0:02:43.8]}
18. dxe5 {[%clk 0:02:31.6]} 18... fxe5 {[%clk 0:02:44.1]} 19. Bg5 {[%clk
0:02:31.7]} 19... Qd6 {[%clk 0:02:43.6]} 20. O-O {[%clk 0:02:25.6]} 20... Rce8
{[%clk 0:02:25.7]} 21. b3 {[%clk 0:02:23.8]} 21... e4 {[%clk 0:02:21.3]} 22.
fxe4 {[%clk 0:02:07.1]} 22... dxe4 {[%clk 0:02:19.9]} 23. Nf2 {[%clk 0:02:07.6]}
23... Qxc5 {[%clk 0:02:13.4]} 24. Qxc4+ {[%clk 0:02:00.1]} 24... Qxc4 {[%clk
0:02:12.7]} 25. bxc4 {[%clk 0:02:01]} 25... e3 {[%clk 0:02:06.5]} 26. Nh1 {[%clk
0:01:54.5]} 26... e2 {[%clk 0:02:04]} 27. Rfc1 {[%clk 0:01:50.5]} 27... Bxc3
{[%clk 0:02:03.6]} 28. Rxc3 {[%clk 0:01:50.4]} 28... e1=Q+ {[%clk 0:02:03.4]}
29. Rxe1 {[%clk 0:01:50.8]} 29... Rxe1+ {[%clk 0:02:04]} 30. Kh2 {[%clk
0:01:51.2]} 30... Re2 {[%clk 0:02:00.2]} 31. Ng3 {[%clk 0:01:51.1]} 31... Rxa2
{[%clk 0:02:00.4]} 32. Rb3 {[%clk 0:01:44.1]} 32... Be6 {[%clk 0:01:51.4]} 33.
Rb7 {[%clk 0:01:43]} 33... Rff2 {[%clk 0:01:49.8]} 34. Ne4 {[%clk 0:01:30.2]}
34... Rxg2+ {[%clk 0:01:48.9]} 35. Kh1 {[%clk 0:01:30.9]} 35... Rh2+ {[%clk
0:01:48.8]} 36. Kg1 {[%clk 0:01:31.6]} 36... Rag2+ {[%clk 0:01:48.8]} 37. Kf1
{[%clk 0:01:32.2]} 37... Bxc4+ {[%clk 0:01:49.4]} 38. Ke1 {[%clk 0:01:32.7]}
38... Rh1# {[%clk 0:01:49.5]} 0-1

[Event "Early-Titled-Tuesday-Blitz-July-09-2024"]
[Site "Chess.com"]
[Date "2024.07.09"]
[Round "11"]
[White "stepanosinovsky"]
[Black "LewAnatol"]
[Result "1-0"]
[WhiteElo "2335"]
[BlackElo "2177"]
[TimeControl "180+1"]
[EndTime "10:04:59 PDT"]
[Termination "stepanosinovsky won by checkmate"]

1. Nf3 {[%clk 0:03:00.9]} 1... d5 {[%clk 0:02:59.3]} 2. g3 {[%clk 0:03:00.8]}
2... e6 {[%clk 0:02:59.6]} 3. Bg2 {[%clk 0:03:01.1]} 3... c5 {[%clk 0:03:00.2]}
4. O-O {[%clk 0:03:01.8]} 4... Nf6 {[%clk 0:03:00.1]} 5. d3 {[%clk 0:03:02.7]}
5... Be7 {[%clk 0:02:59.1]} 6. Nbd2 {[%clk 0:03:03.6]} 6... Nc6 {[%clk
0:02:58.3]} 7. e4 {[%clk 0:03:04]} 7... dxe4 {[%clk 0:02:54.1]} 8. dxe4 {[%clk
0:03:03.8]} 8... e5 {[%clk 0:02:53.7]} 9. c3 {[%clk 0:02:56.4]} 9... Bg4 {[%clk
0:02:52.2]} 10. Nc4 {[%clk 0:02:47.5]} 10... Bxf3 {[%clk 0:02:50.8]} 11. Qxf3
{[%clk 0:02:43.9]} 11... h6 {[%clk 0:02:03.7]} 12. a4 {[%clk 0:02:37.5]} 12...
O-O {[%clk 0:01:54.2]} 13. Ne3 {[%clk 0:02:36.4]} 13... Re8 {[%clk 0:01:45.7]}
14. Nf5 {[%clk 0:02:35.7]} 14... Bf8 {[%clk 0:01:44.5]} 15. Re1 {[%clk
0:02:26.7]} 15... Kh7 {[%clk 0:01:29.3]} 16. Rd1 {[%clk 0:02:22.3]} 16... Qc8
{[%clk 0:01:24.2]} 17. Nxh6 {[%clk 0:02:20.5]} 17... gxh6 {[%clk 0:01:23.7]} 18.
Qxf6 {[%clk 0:02:20]} 18... Bg7 {[%clk 0:01:22.5]} 19. Qh4 {[%clk 0:02:17.8]}
19... Qe6 {[%clk 0:01:12.3]} 20. Bh3 {[%clk 0:02:11.1]} 20... Qb3 {[%clk
0:00:54.7]} 21. Bf5+ {[%clk 0:02:08.3]} 21... Kg8 {[%clk 0:00:48.1]} 22. Bxh6
{[%clk 0:02:09.2]} 22... Bxh6 {[%clk 0:00:35.6]} 23. Qxh6 {[%clk 0:02:07.6]}
23... Red8 {[%clk 0:00:19.9]} 24. Bh7+ {[%clk 0:02:02.5]} 24... Kh8 {[%clk
0:00:19.2]} 25. Rd5 {[%clk 0:01:58.7]} 25... Rxd5 {[%clk 0:00:04.6]} 26. Bg6+
{[%clk 0:01:58.4]} 26... Kg8 {[%clk 0:00:03.9]} 27. Qh7+ {[%clk 0:01:59.3]}
27... Kf8 {[%clk 0:00:04.2]} 28. Qxf7# {[%clk 0:02:00.2]} 1-0

[Event "Early-Titled-Tuesday-Blitz-July-09-2024"]
[Site "Chess.com"]
[Date "2024.07.09"]
[Round "11"]
[White "JanMur7"]
[Black "FollowRivers"]
[Result "0-1"]
[WhiteElo "2288"]
[BlackElo "2486"]
[TimeControl "180+1"]
[EndTime "10:05:01 PDT"]
[Termination "FollowRivers won by resignation"]

1. c4 {[%clk 0:03:00.9]} 1... Nf6 {[%clk 0:02:57.6]} 2. Nc3 {[%clk 0:03:00]}
2... g6 {[%clk 0:02:57.8]} 3. e4 {[%clk 0:02:59.7]} 3... d6 {[%clk 0:02:58]} 4.
d4 {[%clk 0:02:59.6]} 4... Bg7 {[%clk 0:02:58.5]} 5. Be2 {[%clk 0:03:00.1]} 5...
O-O {[%clk 0:02:58.5]} 6. Bg5 {[%clk 0:03:00.7]} 6... c5 {[%clk 0:02:58.5]} 7.
d5 {[%clk 0:03:00.3]} 7... e6 {[%clk 0:02:57.3]} 8. g4 {[%clk 0:02:57.8]} 8...
exd5 {[%clk 0:02:42.1]} 9. cxd5 {[%clk 0:02:58.7]} 9... Re8 {[%clk 0:02:38.5]}
10. f3 {[%clk 0:02:58]} 10... a6 {[%clk 0:02:24.4]} 11. a4 {[%clk 0:02:56]}
11... Nbd7 {[%clk 0:02:15.6]} 12. h4 {[%clk 0:02:52.8]} 12... Ne5 {[%clk
0:02:01.6]} 13. h5 {[%clk 0:02:49.3]} 13... Qb6 {[%clk 0:01:54.2]} 14. Qd2
{[%clk 0:02:47.2]} 14... Qb4 {[%clk 0:01:51.2]} 15. hxg6 {[%clk 0:02:43.6]}
15... fxg6 {[%clk 0:01:48.9]} 16. Nh3 {[%clk 0:02:20.2]} 16... Nf7 {[%clk
0:01:13]} 17. Be3 {[%clk 0:02:16.3]} 17... Bxg4 {[%clk 0:01:01]} 18. fxg4 {[%clk
0:02:12.4]} 18... Nxe4 {[%clk 0:01:00.6]} 19. Nxe4 {[%clk 0:02:11.9]} 19... Qxe4
{[%clk 0:01:01.5]} 20. Nf2 {[%clk 0:01:46.9]} 20... Qxe3 {[%clk 0:01:00.7]} 21.
Qxe3 {[%clk 0:01:47.8]} 21... Rxe3 {[%clk 0:00:59.9]} 22. Kd2 {[%clk 0:01:46.9]}
22... Rae8 {[%clk 0:00:59.1]} 23. Bd3 {[%clk 0:01:46.1]} 23... Rf3 {[%clk
0:00:50.5]} 24. Ne4 {[%clk 0:01:42.8]} 24... c4 {[%clk 0:00:44.5]} 25. Be2
{[%clk 0:01:31.9]} 25... Rb3 {[%clk 0:00:38]} 0-1

[Event "Early-Titled-Tuesday-Blitz-July-09-2024"]
[Site "Chess.com"]
[Date "2024.07.09"]
[Round "11"]
[White "michaelskie11"]
[Black "MusicCityMaster"]
[Result "1-0"]
[WhiteElo "2418"]
[BlackElo "2496"]
[TimeControl "180+1"]
[EndTime "10:05:06 PDT"]
[Termination "michaelskie11 won by resignation"]

1. d4 {[%clk 0:03:00.9]} 1... Nf6 {[%clk 0:02:58.9]} 2. Nc3 {[%clk 0:02:58.7]}
2... g6 {[%clk 0:02:58.1]} 3. e4 {[%clk 0:02:56.8]} 3... d6 {[%clk 0:02:57.7]}
4. Bg5 {[%clk 0:02:57.2]} 4... Bg7 {[%clk 0:02:57.5]} 5. e5 {[%clk 0:02:57.3]}
5... dxe5 {[%clk 0:02:55.3]} 6. dxe5 {[%clk 0:02:58.2]} 6... Qxd1+ {[%clk
0:02:55]} 7. Rxd1 {[%clk 0:02:57.7]} 7... Ng4 {[%clk 0:02:55.6]} 8. h3 {[%clk
0:02:57.6]} 8... Nxe5 {[%clk 0:02:54.3]} 9. Nd5 {[%clk 0:02:57.6]} 9... O-O
{[%clk 0:02:46.9]} 10. Nxc7 {[%clk 0:02:56.5]} 10... Bf5 {[%clk 0:02:41.1]} 11.
Nxa8 {[%clk 0:02:54.6]} 11... Nbc6 {[%clk 0:02:39.5]} 12. Nc7 {[%clk 0:02:53.7]}
12... Bxc2 {[%clk 0:02:39.7]} 13. Rd2 {[%clk 0:02:53.8]} 13... Nb4 {[%clk
0:02:34.8]} 14. Nd5 {[%clk 0:02:35.9]} 14... Ned3+ {[%clk 0:02:30.7]} 15. Bxd3
{[%clk 0:02:33.2]} 15... Nxd3+ {[%clk 0:02:30.8]} 16. Kf1 {[%clk 0:02:20.3]}
16... Bb1 {[%clk 0:02:23.8]} 17. Nc3 {[%clk 0:02:14.5]} 17... Bxc3 {[%clk
0:02:14.6]} 18. bxc3 {[%clk 0:02:15.4]} 18... Rc8 {[%clk 0:02:13.2]} 19. Ne2
{[%clk 0:02:15.3]} 19... Nc5 {[%clk 0:02:06.5]} 20. Be3 {[%clk 0:02:13]} 20...
Ne4 {[%clk 0:02:05.6]} 21. Rb2 {[%clk 0:02:08.6]} 21... Bd3 {[%clk 0:02:05.7]}
22. Ke1 {[%clk 0:01:47.8]} 22... b6 {[%clk 0:02:04.2]} 23. Rb4 {[%clk
0:01:27.1]} 23... f5 {[%clk 0:02:01.5]} 24. Bd4 {[%clk 0:01:24.4]} 24... Kf7
{[%clk 0:01:49.3]} 25. Nf4 {[%clk 0:01:23.9]} 25... Bc4 {[%clk 0:01:47.3]} 26.
f3 {[%clk 0:01:19.3]} 26... Nd6 {[%clk 0:01:43.3]} 27. Kf2 {[%clk 0:01:17.1]}
27... b5 {[%clk 0:01:41]} 28. Re1 {[%clk 0:01:11.6]} 28... a5 {[%clk 0:01:40.9]}
29. Rb2 {[%clk 0:01:11.9]} 29... a4 {[%clk 0:01:33.1]} 30. h4 {[%clk 0:01:11]}
30... a3 {[%clk 0:01:33]} 31. Rd2 {[%clk 0:01:08.4]} 31... h6 {[%clk 0:01:32]}
32. Nd3 {[%clk 0:00:57.6]} 32... Bd5 {[%clk 0:01:27.5]} 33. Ne5+ {[%clk
0:00:56.2]} 33... Ke8 {[%clk 0:01:23.8]} 34. Nxg6 {[%clk 0:00:55.7]} 34... e6
{[%clk 0:01:24.4]} 35. Nf4 {[%clk 0:00:54.9]} 35... Nc4 {[%clk 0:01:20.7]} 36.
Rde2 {[%clk 0:00:48.9]} 1-0

[Event "Early-Titled-Tuesday-Blitz-July-09-2024"]
[Site "Chess.com"]
[Date "2024.07.09"]
[Round "11"]
[White "Hikaru"]
[Black "maciek_92"]
[Result "1-0"]
[WhiteElo "3199"]
[BlackElo "2857"]
[TimeControl "180+1"]
[EndTime "10:05:09 PDT"]
[Termination "Hikaru won by resignation"]

1. Nf3 {[%clk 0:03:00.9]} 1... b6 {[%clk 0:03:00.9]} 2. d4 {[%clk 0:02:59.9]}
2... Bb7 {[%clk 0:03:01.4]} 3. c4 {[%clk 0:02:59.9]} 3... e6 {[%clk 0:03:00.3]}
4. Nc3 {[%clk 0:02:58.4]} 4... Bb4 {[%clk 0:02:59.6]} 5. Qb3 {[%clk 0:02:58.1]}
5... Qe7 {[%clk 0:02:52.1]} 6. a3 {[%clk 0:02:58.1]} 6... Bxc3+ {[%clk
0:02:52.6]} 7. Qxc3 {[%clk 0:02:59]} 7... Nf6 {[%clk 0:02:51.6]} 8. g3 {[%clk
0:02:59.4]} 8... d6 {[%clk 0:02:52]} 9. Bg2 {[%clk 0:02:59.6]} 9... Nbd7 {[%clk
0:02:52.8]} 10. O-O {[%clk 0:02:59.9]} 10... O-O {[%clk 0:02:53.5]} 11. b3
{[%clk 0:03:00.2]} 11... c5 {[%clk 0:02:50.1]} 12. Bb2 {[%clk 0:02:59.9]} 12...
Rfe8 {[%clk 0:02:48.9]} 13. Rad1 {[%clk 0:02:58.6]} 13... a5 {[%clk 0:02:37.9]}
14. dxc5 {[%clk 0:02:58.4]} 14... bxc5 {[%clk 0:02:38.2]} 15. Qd3 {[%clk
0:02:56.1]} 15... Ra6 {[%clk 0:02:32.7]} 16. a4 {[%clk 0:02:54.4]} 16... Rb6
{[%clk 0:02:30.9]} 17. Nd2 {[%clk 0:02:52.9]} 17... Bxg2 {[%clk 0:02:29.3]} 18.
Kxg2 {[%clk 0:02:53.8]} 18... Reb8 {[%clk 0:02:22.8]} 19. Bc3 {[%clk 0:02:53.8]}
19... Ra6 {[%clk 0:02:17.1]} 20. e4 {[%clk 0:02:52.8]} 20... h6 {[%clk
0:01:57.6]} 21. f4 {[%clk 0:02:52.1]} 21... e5 {[%clk 0:01:47.1]} 22. f5 {[%clk
0:02:51.2]} 22... Rb7 {[%clk 0:01:32.8]} 23. h3 {[%clk 0:02:49.4]} 23... Nb8
{[%clk 0:01:33.4]} 24. g4 {[%clk 0:02:50]} 24... Nc6 {[%clk 0:01:33.1]} 25. Qg3
{[%clk 0:02:50]} 25... Nd4 {[%clk 0:01:32.6]} 26. Bxd4 {[%clk 0:02:50.5]} 26...
cxd4 {[%clk 0:01:33.1]} 27. h4 {[%clk 0:02:49.6]} 27... Nd7 {[%clk 0:01:33]} 28.
g5 {[%clk 0:02:49.4]} 28... h5 {[%clk 0:00:49.9]} 29. f6 {[%clk 0:02:49.3]}
29... Qe6 {[%clk 0:00:50]} 30. fxg7 {[%clk 0:02:50]} 30... Rab6 {[%clk
0:00:36.1]} 31. Rf3 {[%clk 0:02:43.8]} 31... Kxg7 {[%clk 0:00:35.2]} 32. Rdf1
{[%clk 0:02:43.4]} 32... Nf8 {[%clk 0:00:35.9]} 33. Rf6 {[%clk 0:02:41.6]} 33...
Qe8 {[%clk 0:00:34.9]} 34. Qf3 {[%clk 0:02:39]} 34... Ng6 {[%clk 0:00:33.9]} 35.
Qxh5 {[%clk 0:02:38.8]} 35... Qh8 {[%clk 0:00:28.2]} 36. Qxh8+ {[%clk
0:02:38.6]} 36... Kxh8 {[%clk 0:00:28.6]} 37. h5 {[%clk 0:02:37.6]} 37... Nf4+
{[%clk 0:00:26.3]} 38. R1xf4 {[%clk 0:02:37.7]} 38... exf4 {[%clk 0:00:27.2]}
39. Kf3 {[%clk 0:02:38.4]} 39... Rxb3+ {[%clk 0:00:20.4]} 40. Nxb3 {[%clk
0:02:38.5]} 40... Rxb3+ {[%clk 0:00:21.3]} 41. Kxf4 {[%clk 0:02:39.2]} 41... Rb4
{[%clk 0:00:22.2]} 42. Rxf7 {[%clk 0:02:37.2]} 42... Rxc4 {[%clk 0:00:21]} 43.
g6 {[%clk 0:02:37.2]} 43... d3 {[%clk 0:00:10.7]} 44. h6 {[%clk 0:02:37.2]}
44... Rc8 {[%clk 0:00:11.5]} 45. Rh7+ {[%clk 0:02:37.5]} 45... Kg8 {[%clk
0:00:11.9]} 46. Rd7 {[%clk 0:02:38.4]} 46... d2 {[%clk 0:00:05]} 47. Rxd6 {[%clk
0:02:38.6]} 47... d1=Q {[%clk 0:00:05.4]} 48. Rxd1 {[%clk 0:02:38.3]} 48... Kh8
{[%clk 0:00:05.5]} 49. Kg5 {[%clk 0:02:37.8]} 1-0

[Event "Early-Titled-Tuesday-Blitz-July-09-2024"]
[Site "Chess.com"]
[Date "2024.07.09"]
[Round "11"]
[White "KhamzinOlzhas"]
[Black "SujanaLohani"]
[Result "0-1"]
[WhiteElo "2519"]
[BlackElo "2377"]
[TimeControl "180+1"]
[EndTime "10:05:20 PDT"]
[Termination "SujanaLohani won by resignation"]

1. d4 {[%clk 0:03:00.9]} 1... Nf6 {[%clk 0:02:57.2]} 2. c4 {[%clk 0:03:00]} 2...
g6 {[%clk 0:02:56.7]} 3. Nc3 {[%clk 0:02:59.4]} 3... d5 {[%clk 0:02:56.7]} 4.
cxd5 {[%clk 0:02:59]} 4... Nxd5 {[%clk 0:02:53.4]} 5. e4 {[%clk 0:02:59.1]} 5...
Nxc3 {[%clk 0:02:53.4]} 6. bxc3 {[%clk 0:03:00]} 6... Bg7 {[%clk 0:02:53.9]} 7.
Nf3 {[%clk 0:02:59.8]} 7... c5 {[%clk 0:02:53.2]} 8. Bb5+ {[%clk 0:02:59.7]}
8... Bd7 {[%clk 0:02:51.7]} 9. Rb1 {[%clk 0:02:57.4]} 9... O-O {[%clk
0:02:47.9]} 10. O-O {[%clk 0:02:56.8]} 10... a6 {[%clk 0:02:42.7]} 11. Bxd7
{[%clk 0:02:56.3]} 11... Qxd7 {[%clk 0:02:42.5]} 12. Be3 {[%clk 0:02:52.3]}
12... b5 {[%clk 0:02:41]} 13. e5 {[%clk 0:02:33.5]} 13... cxd4 {[%clk
0:02:35.9]} 14. cxd4 {[%clk 0:02:30.9]} 14... Nc6 {[%clk 0:02:36.4]} 15. Qc2
{[%clk 0:02:24.5]} 15... Rac8 {[%clk 0:02:34.8]} 16. Qe4 {[%clk 0:02:24.5]}
16... Rfd8 {[%clk 0:02:33.5]} 17. Rfd1 {[%clk 0:02:23.5]} 17... Qd5 {[%clk
0:02:33.3]} 18. Qh4 {[%clk 0:02:23.1]} 18... Qxa2 {[%clk 0:02:22.6]} 19. Ng5
{[%clk 0:02:20.3]} 19... h5 {[%clk 0:02:13.7]} 20. e6 {[%clk 0:02:09.8]} 20...
f6 {[%clk 0:02:03.6]} 21. Nf7 {[%clk 0:02:08.5]} 21... Rf8 {[%clk 0:02:02.6]}
22. d5 {[%clk 0:02:06.9]} 22... Nd8 {[%clk 0:01:32.2]} 23. Nxd8 {[%clk
0:01:20.9]} 23... Rfxd8 {[%clk 0:01:31]} 24. Ra1 {[%clk 0:01:14.8]} 24... Rxd5
{[%clk 0:01:26.9]} 25. Qg3 {[%clk 0:01:05.6]} 25... Rxd1+ {[%clk 0:01:22.9]} 26.
Rxd1 {[%clk 0:01:01.7]} 26... Kh7 {[%clk 0:01:20.2]} 27. Qh3 {[%clk 0:00:53.4]}
27... b4 {[%clk 0:01:16.9]} 28. g4 {[%clk 0:00:52.9]} 28... Qxe6 {[%clk
0:01:15.1]} 29. f3 {[%clk 0:00:45.1]} 29... Qxe3+ {[%clk 0:01:13.5]} 0-1

[Event "Early-Titled-Tuesday-Blitz-July-09-2024"]
[Site "Chess.com"]
[Date "2024.07.09"]
[Round "11"]
[White "Knightmare1014"]
[Black "MarlonJodar"]
[Result "0-1"]
[WhiteElo "2241"]
[BlackElo "2362"]
[TimeControl "180+1"]
[EndTime "10:05:26 PDT"]
[Termination "MarlonJodar won by checkmate"]

1. e4 {[%clk 0:03:00.9]} 1... e5 {[%clk 0:02:59.8]} 2. Nf3 {[%clk 0:03:00.5]}
2... Nc6 {[%clk 0:03:00.1]} 3. Bc4 {[%clk 0:02:59.7]} 3... Nf6 {[%clk
0:02:59.9]} 4. d3 {[%clk 0:02:56.7]} 4... Be7 {[%clk 0:02:59.5]} 5. O-O {[%clk
0:02:55.7]} 5... O-O {[%clk 0:03:00.4]} 6. c3 {[%clk 0:02:53.8]} 6... d5 {[%clk
0:03:00]} 7. exd5 {[%clk 0:02:47.5]} 7... Nxd5 {[%clk 0:03:00.9]} 8. Re1 {[%clk
0:02:42.9]} 8... Bg4 {[%clk 0:02:51.9]} 9. h3 {[%clk 0:02:40.6]} 9... Bh5 {[%clk
0:02:51.8]} 10. g4 {[%clk 0:02:24.6]} 10... Bg6 {[%clk 0:02:51.5]} 11. Nxe5
{[%clk 0:02:24]} 11... Nxe5 {[%clk 0:02:51.6]} 12. Rxe5 {[%clk 0:02:23.7]} 12...
c6 {[%clk 0:02:45.5]} 13. Bxd5 {[%clk 0:02:18.4]} 13... cxd5 {[%clk 0:02:45.5]}
14. d4 {[%clk 0:02:16.4]} 14... Bd6 {[%clk 0:02:43.6]} 15. Re1 {[%clk
0:02:11.6]} 15... Qh4 {[%clk 0:02:34.5]} 16. Qf3 {[%clk 0:02:10.2]} 16... Rae8
{[%clk 0:02:31.6]} 17. Rxe8 {[%clk 0:01:15.3]} 17... Rxe8 {[%clk 0:02:32.5]} 18.
Bd2 {[%clk 0:01:15.2]} 18... Be4 {[%clk 0:01:55.5]} 19. Qe3 {[%clk 0:01:15.4]}
19... h5 {[%clk 0:01:18.8]} 20. gxh5 {[%clk 0:00:44.3]} 20... Qxh5 {[%clk
0:01:13.6]} 21. Na3 {[%clk 0:00:43.6]} 21... Re6 {[%clk 0:01:13.4]} 22. Kf1
{[%clk 0:00:25.2]} 22... Bf3 {[%clk 0:01:09.6]} 23. Qg5 {[%clk 0:00:21.7]} 23...
Qxh3+ {[%clk 0:01:08.4]} 24. Kg1 {[%clk 0:00:20.6]} 24... Qh1# {[%clk
0:01:08.3]} 0-1

[Event "Early-Titled-Tuesday-Blitz-July-09-2024"]
[Site "Chess.com"]
[Date "2024.07.09"]
[Round "11"]
[White "esrosenberg"]
[Black "ploxoi"]
[Result "0-1"]
[WhiteElo "2313"]
[BlackElo "2460"]
[TimeControl "180+1"]
[EndTime "10:05:40 PDT"]
[Termination "ploxoi won by resignation"]

1. e4 {[%clk 0:03:00.9]} 1... e6 {[%clk 0:02:48.1]} 2. Nc3 {[%clk 0:02:57.7]}
2... d5 {[%clk 0:02:49]} 3. d4 {[%clk 0:02:57.6]} 3... Bb4 {[%clk 0:02:48.5]} 4.
exd5 {[%clk 0:02:57.7]} 4... exd5 {[%clk 0:02:48.6]} 5. Bd3 {[%clk 0:02:58.3]}
5... Nc6 {[%clk 0:02:48.7]} 6. Nf3 {[%clk 0:02:57.7]} 6... Nge7 {[%clk
0:02:49.3]} 7. O-O {[%clk 0:02:55.8]} 7... Bf5 {[%clk 0:02:49.3]} 8. Ne2 {[%clk
0:02:42.6]} 8... Qd7 {[%clk 0:02:47.1]} 9. c3 {[%clk 0:02:40.3]} 9... Bd6 {[%clk
0:02:47]} 10. Bf4 {[%clk 0:02:41]} 10... f6 {[%clk 0:02:41.4]} 11. Qd2 {[%clk
0:02:40.1]} 11... O-O-O {[%clk 0:02:38.8]} 12. b4 {[%clk 0:02:35.4]} 12... g5
{[%clk 0:02:36.2]} 13. Bxd6 {[%clk 0:02:34.3]} 13... Qxd6 {[%clk 0:02:37.1]} 14.
Ng3 {[%clk 0:02:32.5]} 14... Bxd3 {[%clk 0:02:32]} 15. Qxd3 {[%clk 0:02:33.4]}
15... Qf4 {[%clk 0:02:31.9]} 16. a4 {[%clk 0:02:29.9]} 16... h5 {[%clk
0:02:30.4]} 17. a5 {[%clk 0:02:29.3]} 17... h4 {[%clk 0:02:28.2]} 18. Ne2 {[%clk
0:02:28.4]} 18... Qe4 {[%clk 0:02:26.1]} 19. Rfd1 {[%clk 0:01:54.2]} 19... Rhe8
{[%clk 0:02:18.3]} 20. b5 {[%clk 0:01:45.1]} 20... Nb8 {[%clk 0:02:14]} 21. b6
{[%clk 0:01:31.1]} 21... Qxd3 {[%clk 0:02:11.8]} 22. Rxd3 {[%clk 0:01:27.8]}
22... cxb6 {[%clk 0:02:08.3]} 23. axb6 {[%clk 0:01:27.6]} 23... a6 {[%clk
0:02:09.2]} 24. Kf1 {[%clk 0:01:21.6]} 24... Nec6 {[%clk 0:02:07.5]} 25. Nc1
{[%clk 0:01:15.1]} 25... Nd7 {[%clk 0:02:07.3]} 26. Rb1 {[%clk 0:01:14.1]} 26...
Re6 {[%clk 0:02:06.8]} 27. Nb3 {[%clk 0:01:13.8]} 27... Rde8 {[%clk 0:02:03.5]}
28. Nc5 {[%clk 0:01:14.4]} 28... Rd6 {[%clk 0:01:55.5]} 29. h3 {[%clk
0:01:03.8]} 29... Na5 {[%clk 0:01:55.5]} 30. Nd2 {[%clk 0:00:58.5]} 30... Rxb6
{[%clk 0:01:46.6]} 31. Ra1 {[%clk 0:00:50.8]} 31... Rb5 {[%clk 0:01:32.2]} 32.
Nxd7 {[%clk 0:00:41.7]} 32... Kxd7 {[%clk 0:01:33.1]} 33. Rf3 {[%clk 0:00:41.9]}
33... Re6 {[%clk 0:01:33.7]} 34. Rf5 {[%clk 0:00:41]} 34... Kd6 {[%clk
0:01:34.3]} 35. Kg1 {[%clk 0:00:34.7]} 35... Nb3 {[%clk 0:01:33.7]} 36. Nxb3
{[%clk 0:00:33.7]} 36... Rxb3 {[%clk 0:01:34.6]} 37. Ra5 {[%clk 0:00:33.5]}
37... Rb5 {[%clk 0:01:35]} 38. Rxb5 {[%clk 0:00:33.4]} 38... axb5 {[%clk
0:01:35.9]} 39. Rf3 {[%clk 0:00:33]} 39... Re1+ {[%clk 0:01:33.5]} 40. Kh2
{[%clk 0:00:32.6]} 40... Ke6 {[%clk 0:01:34.1]} 41. Re3+ {[%clk 0:00:31.4]}
41... Rxe3 {[%clk 0:01:33.8]} 42. fxe3 {[%clk 0:00:32.3]} 42... Kf5 {[%clk
0:01:34.6]} 43. g3 {[%clk 0:00:29.1]} 43... Ke4 {[%clk 0:01:33.8]} 0-1